fUSD/lending_fUSD_20260213
["ID","MTS","AMOUNT","RATE_DAILY","PERIOD"]
[405313150,1770978637748,-11935.11915648,8e-05,2]
[405313151,1770978637761,-6103.65377534,8e-05,2]
[405313152,1770978637774,-563.94852852,8e-05,2]
[405313164,1770978639636,-374.10410906,8e-05,2]
[405313165,1770978639648,-497.12974831,8e-05,2]
[405313166,1770978639661,-3167712.18396821,8e-05,2]
[405313167,1770978639670,-250.0,8.056e-05,2]
[405313168,1770978639679,-547.02578597,8.056e-05,2]
[405313169,1770978639690,-1104.463,8.087e-05,2]
[405313170,1770978639699,-169.169,8.087e-05,2]
[405313171,1770978639709,-6734.8376,8.1e-05,2]
[405313172,1770978639718,-166.17,8.2e-05,2]
[405313173,1770978639727,-98549.26599848,8.2e-05,2]
[405313174,1770978639737,-999.99,8.219e-05,2]
[405313175,1770978639746,-9999.99,8.219e-05,2]
[405313176,1770978639756,-150.99,8.219e-05,2]
[405313177,1770978639765,-9999.99,8.219e-05,2]
[405313178,1770978639774,-500.0,8.219e-05,2]
[405313179,1770978639784,-288.67967473,8.219e-05,2]
[405313180,1770978639794,-500.0,8.219e-05,2]
[405313181,1770978639803,-500.0,8.219e-05,2]
[405313182,1770978639812,-281.27,8.616e-05,2]
[405313183,1770978639821,-250.0,8.799e-05,2]
[405313184,1770978639830,-420.0,8.799e-05,2]
[405313185,1770978639840,-281.27,8.811e-05,2]
[405313186,1770978639850,-281.27,9.005e-05,2]
[405313187,1770978639858,-281.27,9.199e-05,2]
[405313188,1770978639868,-281.27,9.394e-05,2]
[405313189,1770978639878,-281.27,9.588e-05,2]
[405313190,1770978639887,-587.0,9.679e-05,2]
[405313191,1770978639897,-281.27,9.782e-05,2]
[405313192,1770978639906,-281.27,9.977e-05,2]
[405313193,1770978639915,-198.07726629,0.0001,2]
[405313194,1770978639924,-281.27,0.00010171,2]
[405313195,1770978639934,-1325.26065866,0.00010172,2]
[405313196,1770978639943,-281.27,0.00010365,2]
[405313197,1770978639953,-281.27,0.0001056,2]
[405313198,1770978639962,-250.0,0.00010569,2]
[405313199,1770978639973,-823.0,0.00010647,2]
[405313200,1770978639982,-281.27,0.00010754,2]
[405313201,1770978639992,-281.27,0.00010949,2]
[405313202,1770978640001,-300.0,0.00011055,7]
[405313203,1770978640011,-921.07134579,0.00011099,2]
[405313204,1770978640025,-921.0713457,0.00011099,2]
[405313205,1770978640036,-921.0713457,0.00011099,2]
[405313206,1770978640045,-212.50686141,0.00011099,2]
[405313207,1770978640055,-281.27,0.00011143,2]
[405313209,1770978640064,-163.73,0.00011186,2]
[405313211,1770978640073,-730.79,0.00011204,2]
[405313213,1770978640082,-921.0713457,0.00011291,2]
[405313214,1770978640091,-317.09111135,0.00011337,2]
[405313215,1770978640100,-281.27,0.00011337,2]
[405313216,1770978640109,-281.27,0.00011532,2]
[405313217,1770978640119,-1152.0,0.00011711,2]
[405313218,1770978640128,-281.27,0.00011726,2]
[405313219,1770978640138,-25814.2,0.0001186,2]
[405313220,1770978640147,-281.27,0.0001192,2]
[405313221,1770978640156,-281.27,0.00012115,2]
[405313222,1770978640166,-281.27,0.00012309,2]
[405313223,1770978640175,-921.0713457,0.00012393,2]
[405313224,1770978640185,-1613.0,0.00012882,2]
[405313225,1770978640194,-198.07726627,0.00012928,2]
[405313226,1770978640204,-15828.57,0.0001295,2]
[405313227,1770978640214,-500.0,0.00013424,2]
[405313228,1770978640224,-150.0,0.00013424,2]
[405313229,1770978640233,-500.0,0.00013479,2]
[405313230,1770978640243,-150.0,0.00013479,2]
[405313231,1770978640253,-921.0713457,0.00013494,2]
[405313232,1770978640264,-500.0,0.00013534,2]
[405313233,1770978640274,-200.0,0.00013534,2]
[405313234,1770978640283,-500.0,0.00013588,2]
[405313235,1770978640293,-500.0,0.00013643,2]
[405313236,1770978640302,-500.0,0.00013673,2]
[405313237,1770978640311,-500.0,0.00013698,2]
[405313238,1770978640320,-500.0,0.00013698,2]
[405313239,1770978640329,-637.19,0.00013698,2]
[405313240,1770978640339,-500.0,0.00013698,2]
[405313241,1770978640348,-500.0,0.00013698,2]
[405313242,1770978640357,-500.0,0.00013698,2]
[405313243,1770978640367,-500.0,0.00013698,2]
[405313244,1770978640376,-500.0,0.00013698,2]
[405313245,1770978640385,-456.64700258,0.00013698,2]
[405313246,1770978640395,-500.0,0.00013698,2]
[405313247,1770978640404,-500.0,0.00013698,2]
[405313248,1770978640414,-500.0,0.00013698,2]
[405313249,1770978640424,-500.0,0.00013698,2]
[405313250,1770978640433,-500.0,0.00013698,2]
[405313251,1770978640443,-500.0,0.00013698,2]
[405313252,1770978640452,-500.0,0.00013698,2]
[405313253,1770978640462,-500.0,0.00013698,2]
[405313254,1770978640471,-500.0,0.00013698,2]
[405313255,1770978640480,-500.0,0.00013698,2]
[405313256,1770978640490,-500.0,0.00013698,2]
[405313257,1770978640499,-486.52571045,0.00013698,2]
[405313258,1770978640508,-500.0,0.00013698,2]
[405313259,1770978640517,-505.53791634,0.00013698,2]
[405313260,1770978640527,-500.0,0.00013698,2]
[405313261,1770978640536,-500.0,0.00013698,2]
[405313262,1770978640545,-500.0,0.00013698,2]
[405313263,1770978640554,-500.0,0.00013698,2]
[405313264,1770978640563,-500.0,0.00013698,2]
[405313265,1770978640572,-500.0,0.00013698,2]
[405313266,1770978640582,-500.0,0.00013698,2]
[405313267,1770978640591,-430.95470034,0.00013698,2]
[405313268,1770978640600,-500.0,0.00013698,2]
[405313269,1770978640610,-500.0,0.00013698,2]
[405313270,1770978640623,-500.0,0.00013698,2]
[405313271,1770978640632,-500.0,0.00013698,2]
[405313272,1770978640641,-500.0,0.00013698,2]
[405313273,1770978640651,-500.0,0.00013698,2]
[405313274,1770978640662,-500.0,0.00013698,2]
[405313275,1770978640672,-500.0,0.00013698,2]
[405313276,1770978640681,-500.0,0.00013698,2]
[405313277,1770978640691,-500.0,0.00013698,2]
[405313278,1770978640700,-500.0,0.00013698,2]
[405313279,1770978640709,-500.0,0.00013698,2]
[405313280,1770978640718,-500.0,0.00013698,2]
[405313281,1770978640728,-554.28509654,0.00013698,2]
[405313282,1770978640737,-526.46476323,0.00013698,2]
[405313283,1770978640746,-500.0,0.00013698,2]
[405313284,1770978640756,-500.0,0.00013698,2]
[405313285,1770978640768,-500.0,0.00013698,2]
[405313286,1770978640777,-500.0,0.00013698,2]
[405313287,1770978640786,-500.0,0.00013698,2]
[405313288,1770978640795,-500.0,0.00013698,2]
[405313289,1770978640805,-500.0,0.00013698,2]
[405313290,1770978640814,-191.68754888,0.00013698,2]
[405313291,1770978640823,-500.0,0.00013698,2]
[405313292,1770978640832,-500.0,0.00013698,2]
[405313293,1770978640841,-500.0,0.00013698,2]
[405313294,1770978640850,-495.54112114,0.00013698,2]
[405313295,1770978640859,-500.0,0.00013698,2]
[405313296,1770978640869,-500.0,0.00013698,2]
[405313297,1770978640878,-500.0,0.00013698,2]
[405313298,1770978640888,-500.0,0.00013698,2]
[405313299,1770978640897,-500.0,0.00013698,2]
[405313300,1770978640906,-500.0,0.00013698,2]
[405313301,1770978640915,-500.0,0.00013698,2]
[405313302,1770978640925,-500.0,0.00013698,2]
[405313303,1770978640936,-500.0,0.00013698,2]
[405313304,1770978640945,-500.0,0.00013698,2]
[405313305,1770978640954,-500.0,0.00013698,2]
[405313306,1770978640963,-500.0,0.00013698,2]
[405313307,1770978640972,-500.0,0.00013698,2]
[405313308,1770978640981,-500.0,0.00013698,2]
[405313309,1770978640991,-22015.6,0.000137,2]
[405313310,1770978640999,-22015.6,0.000137,2]
[405313311,1770978641011,-575.56698105,0.00013753,2]
[405313312,1770978641020,-160.0,0.00013819,2]
[405313313,1770978641030,-2258.0,0.00014171,2]
[405313314,1770978641039,-876.63664137,0.00014221,2]
[405313315,1770978641048,-177.161267,0.0001425,7]
[405313316,1770978641057,-921.0713457,0.00014596,2]
[405313317,1770978641067,-1000.0,0.00015358,7]
[405313318,1770978641075,-3162.0,0.00015588,2]
[405313319,1770978641084,-921.0713457,0.00015697,2]
[405313320,1770978641094,-575.78,0.00016021,2]
[405313321,1770978641103,-453.94,0.00016116,2]
[405313322,1770978641112,-282.63121113,0.00016173,2]
[405313323,1770978641121,-160.37994263,0.00016173,2]
[405313324,1770978641130,-596.02960806,0.00016173,2]
[405313325,1770978641140,-500.2976467,0.00016173,2]
[405313326,1770978641149,-500.0,0.00016173,2]
[405313327,1770978641158,-177409.97,0.000162,5]
[405313328,1770978641167,-199.17,0.00016712,2]
[405313329,1770978641177,-1000.0,0.00016721,2]
[405313330,1770978641186,-921.0713457,0.00016799,2]
[405313331,1770978641195,-1000.0,0.00016863,2]
[405313332,1770978641204,-4427.0,0.00017147,2]
[405313333,1770978641214,-1500.0,0.00017268,2]
[405313334,1770978641223,-575.78,0.00017391,2]
[405313335,1770978641232,-481.89542729,0.00017743,2]
[405313336,1770978641242,-534.946677,0.00017808,2]
[405313337,1770978641251,-534.946677,0.00017808,2]
[405313338,1770978641260,-534.946677,0.00017808,2]
[405313339,1770978641270,-534.946677,0.00017808,2]
[405313340,1770978641280,-534.946677,0.00017808,2]
[405313341,1770978641289,-534.946677,0.00017808,2]
[405313342,1770978641299,-534.946677,0.00017808,2]
[405313343,1770978641308,-534.946677,0.00017808,2]
[405313344,1770978641317,-534.946677,0.00017808,2]
[405313345,1770978641326,-534.946677,0.00017808,2]
[405313346,1770978641336,-534.946677,0.00017808,2]
[405313347,1770978641346,-534.946677,0.00017808,2]
[405313348,1770978641355,-534.946677,0.00017808,2]
[405313349,1770978641365,-534.946677,0.00017808,2]
[405313350,1770978641374,-534.946677,0.00017808,2]
[405313351,1770978641385,-534.946677,0.00017808,2]
[405313352,1770978641394,-534.946677,0.00017808,2]
[405313353,1770978641403,-534.946677,0.00017808,2]
[405313354,1770978641412,-534.946677,0.00017808,2]
[405313355,1770978641421,-534.946677,0.00017808,2]
[405313356,1770978641430,-855.30678926,0.00017808,2]
[405313357,1770978641439,-855.30678926,0.00017808,2]
[405313358,1770978641447,-855.30678926,0.00017808,2]
[405313359,1770978641456,-855.30678926,0.00017808,2]
[405313360,1770978641465,-855.30678926,0.00017808,2]
[405313361,1770978641474,-855.30678926,0.00017808,2]
[405313362,1770978641483,-855.30678926,0.00017808,2]
[405313363,1770978641493,-855.30678926,0.00017808,2]
[405313364,1770978641502,-2008.47777759,0.00017816,2]
[405313365,1770978641511,-921.0713457,0.000179,2]
[405313366,1770978641520,-3231577.19007238,0.00018,2]
[405313367,1770978641529,-34777.23406205,0.00018,2]
[405313368,1770978641538,-1337716.58920668,0.00018,2]
[405313379,1770978643358,-18542.0,0.00018,2]
[405313380,1770978643371,-196457.119348,0.00018,2]
[405313381,1770978643382,-2343.68669856,0.00018,2]
[405313382,1770978644261,-198.07726627,0.000179,2]
[405313383,1770978644271,-3933.64661453,0.00018,2]
[405313388,1770978645482,-300.0,0.00018,2]
[405313389,1770978645589,-1434.61950838,0.00018,2]
[405313390,1770978645644,-9746.19370959,0.00018,2]
[405313391,1770978645658,-406.02414376,0.00018,2]
[405313392,1770978645806,-608.21731146,0.00018,2]
[405313397,1770978938991,-503.0,7.899e-05,2]
[405313398,1770978939073,-459.07338131,7.899e-05,2]
[405313453,1770979831824,-361.31657525,7.644e-05,2]
[405313454,1770979831877,-743.14642475,7.644e-05,2]
[405313455,1770979831888,-169.169,7.644e-05,2]
[405313456,1770979831898,-250.0,7.672e-05,2]
[405313457,1770979831908,-151.0,7.697e-05,2]
[405313458,1770979831918,-151.0,7.697e-05,2]
[405313459,1770979831928,-154.43360262,7.697e-05,2]
[405313477,1770979832138,-1000.0,7.699e-05,2]
[405313479,1770979832148,-6734.8376,7.7e-05,2]
[405313481,1770979832157,-199834.2914956,7.7e-05,2]
[405313483,1770979837868,-293.46115442,7.7e-05,2]
[405313504,1770979839959,-38861.73505753,7.7e-05,2]
[405313505,1770979840065,-3261010.51229245,7.7e-05,2]
[405313506,1770979840076,-250.0,7.724e-05,2]
[405313507,1770979840088,-7078.64776077,7.899e-05,2]
[405313508,1770979840098,-9999.99,7.899e-05,2]
[405313509,1770979840108,-9999.99,7.899e-05,2]
[405313510,1770979840117,-999.99,7.899e-05,2]
[405313511,1770979840127,-150.99,7.899e-05,2]
[405313512,1770979840137,-166.17,7.9e-05,2]
[405313513,1770979840147,-250.0,8.408e-05,2]
[405313514,1770979840157,-24483.64718134,9.562e-05,2]
[405313515,1770979840167,-250.0,0.000101,2]
[405313516,1770979840176,-175.91,0.0001063,2]
[405313517,1770979840187,-300.0,0.00011055,7]
[405313518,1770979840196,-921.07134579,0.00011099,2]
[405313519,1770979840206,-921.0713457,0.00011099,2]
[405313520,1770979840215,-921.0713457,0.00011099,2]
[405313521,1770979840224,-7278.28456787,0.00011099,2]
[405313522,1770979840233,-7278.2845678,0.00011099,2]
[405313523,1770979840243,-7278.2845678,0.00011099,2]
[405313524,1770979840252,-7278.2845678,0.00011099,2]
[405313525,1770979840261,-921.0713457,0.00011133,2]
[405313526,1770979840270,-6320.88,0.00011451,2]
[405313527,1770979840279,-7278.2845678,0.00012143,2]
[405313528,1770979840289,-921.0713457,0.00012244,2]
[405313529,1770979840299,-1477.84,0.00012809,2]
[405313530,1770979840309,-2178.36,0.00012911,2]
[405313531,1770979840319,-500.0,0.00013011,2]
[405313532,1770979840328,-7278.2845678,0.00013275,2]
[405313533,1770979840338,-175.91,0.00013288,2]
[405313534,1770979840347,-921.0713457,0.00013355,2]
[405313535,1770979840357,-500.0,0.00013424,2]
[405313536,1770979840366,-150.0,0.00013424,2]
[405313537,1770979840376,-500.0,0.00013479,2]
[405313538,1770979840385,-150.0,0.00013479,2]
[405313539,1770979840395,-500.0,0.00013534,2]
[405313540,1770979840404,-200.0,0.00013534,2]
[405313541,1770979840414,-500.0,0.00013588,2]
[405313542,1770979840423,-500.0,0.00013643,2]
[405313543,1770979840432,-1878.53,0.00013664,2]
[405313544,1770979840441,-317.09111135,0.00013664,2]
[405313545,1770979840451,-500.0,0.00013673,2]
[405313546,1770979840460,-500.0,0.00013698,2]
[405313547,1770979840469,-500.0,0.00013698,2]
[405313548,1770979840478,-500.0,0.00013698,2]
[405313549,1770979840487,-500.0,0.00013698,2]
[405313550,1770979840496,-500.0,0.00013698,2]
[405313551,1770979840506,-500.0,0.00013698,2]
[405313552,1770979840516,-500.0,0.00013698,2]
[405313553,1770979840525,-500.0,0.00013698,2]
[405313554,1770979840535,-500.0,0.00013698,2]
[405313555,1770979840544,-500.0,0.00013698,2]
[405313556,1770979840554,-500.0,0.00013698,2]
[405313557,1770979840563,-500.0,0.00013698,2]
[405313558,1770979840573,-390.269748,0.00013698,2]
[405313559,1770979840583,-500.0,0.00013698,2]
[405313560,1770979840594,-500.0,0.00013698,2]
[405313561,1770979840604,-500.0,0.00013698,2]
[405313562,1770979840613,-190.05419818,0.00013698,2]
[405313563,1770979840623,-500.0,0.00013698,2]
[405313564,1770979840632,-500.0,0.00013698,2]
[405313565,1770979840642,-500.0,0.00013698,2]
[405313566,1770979840652,-313.3815855,0.00013698,2]
[405313567,1770979840661,-500.0,0.00013698,2]
[405313568,1770979840670,-500.0,0.00013698,2]
[405313569,1770979840679,-500.0,0.00013698,2]
[405313570,1770979840689,-500.0,0.00013698,2]
[405313571,1770979840698,-500.0,0.00013698,2]
[405313572,1770979840707,-500.0,0.00013698,2]
[405313573,1770979840717,-500.0,0.00013698,2]
[405313574,1770979840727,-646.96442771,0.00013698,2]
[405313575,1770979840737,-500.0,0.00013698,2]
[405313576,1770979840747,-505.53791634,0.00013698,2]
[405313577,1770979840756,-500.0,0.00013698,2]
[405313578,1770979840765,-500.0,0.00013698,2]
[405313579,1770979840774,-500.0,0.00013698,2]
[405313580,1770979840783,-500.0,0.00013698,2]
[405313581,1770979840792,-500.0,0.00013698,2]
[405313582,1770979840802,-500.0,0.00013698,2]
[405313583,1770979840811,-500.0,0.00013698,2]
[405313584,1770979840820,-206.37601554,0.00013698,2]
[405313585,1770979840829,-500.0,0.00013698,2]
[405313586,1770979840839,-500.0,0.00013698,2]
[405313587,1770979840848,-500.0,0.00013698,2]
[405313588,1770979840857,-500.0,0.00013698,2]
[405313589,1770979840866,-500.0,0.00013698,2]
[405313590,1770979840875,-500.0,0.00013698,2]
[405313591,1770979840885,-500.0,0.00013698,2]
[405313592,1770979840894,-430.95470034,0.00013698,2]
[405313593,1770979840903,-500.0,0.00013698,2]
[405313594,1770979840912,-500.0,0.00013698,2]
[405313595,1770979840921,-500.0,0.00013698,2]
[405313596,1770979840931,-500.0,0.00013698,2]
[405313597,1770979840939,-500.0,0.00013698,2]
[405313598,1770979840949,-500.0,0.00013698,2]
[405313599,1770979840958,-500.0,0.00013698,2]
[405313600,1770979840967,-500.0,0.00013698,2]
[405313601,1770979840977,-500.0,0.00013698,2]
[405313602,1770979840986,-500.0,0.00013698,2]
[405313603,1770979840996,-500.0,0.00013698,2]
[405313604,1770979841006,-500.0,0.00013698,2]
[405313605,1770979841017,-500.0,0.00013698,2]
[405313606,1770979841026,-500.0,0.00013698,2]
[405313607,1770979841036,-194.04770196,0.00013698,2]
[405313608,1770979841044,-500.0,0.00013698,2]
[405313609,1770979841054,-500.0,0.00013698,2]
[405313610,1770979841067,-500.0,0.00013698,2]
[405313611,1770979841076,-500.0,0.00013698,2]
[405313612,1770979841086,-459.69931234,0.00013698,2]
[405313613,1770979841096,-526.46476323,0.00013698,2]
[405313614,1770979841105,-500.0,0.00013698,2]
[405313615,1770979841115,-500.0,0.00013698,2]
[405313616,1770979841124,-500.0,0.00013698,2]
[405313617,1770979841134,-500.0,0.00013698,2]
[405313618,1770979841143,-500.0,0.00013698,2]
[405313619,1770979841152,-500.0,0.00013698,2]
[405313620,1770979841162,-547.95700258,0.00013698,2]
[405313621,1770979841171,-500.0,0.00013698,2]
[405313622,1770979841181,-500.0,0.00013698,2]
[405313623,1770979841191,-500.0,0.00013698,2]
[405313624,1770979841200,-500.0,0.00013698,2]
[405313625,1770979841210,-500.0,0.00013698,2]
[405313626,1770979841220,-500.0,0.00013698,2]
[405313627,1770979841229,-500.0,0.00013698,2]
[405313628,1770979841238,-500.0,0.00013698,2]
[405313629,1770979841248,-500.0,0.00013698,2]
[405313630,1770979841258,-500.0,0.00013698,2]
[405313631,1770979841267,-500.0,0.00013698,2]
[405313632,1770979841276,-500.0,0.00013698,2]
[405313633,1770979841286,-500.0,0.00013698,2]
[405313634,1770979841295,-500.0,0.00013698,2]
[405313635,1770979841304,-500.0,0.00013698,2]
[405313636,1770979841313,-500.0,0.00013698,2]
[405313637,1770979841322,-500.0,0.00013698,2]
[405313638,1770979841332,-500.0,0.00013698,2]
[405313639,1770979841342,-500.0,0.00013698,2]
[405313640,1770979841351,-500.0,0.00013698,2]
[405313641,1770979841361,-500.0,0.00013698,2]
[405313642,1770979841371,-500.0,0.00013698,2]
[405313643,1770979841381,-500.0,0.00013698,2]
[405313644,1770979841393,-500.0,0.00013698,2]
[405313645,1770979841402,-500.0,0.00013698,2]
[405313646,1770979841412,-500.0,0.00013698,2]
[405313647,1770979841422,-500.0,0.00013698,2]
[405313648,1770979841433,-500.0,0.00013698,2]
[405313649,1770979841442,-500.0,0.00013698,2]
[405313650,1770979841453,-500.0,0.00013698,2]
[405313651,1770979841463,-500.0,0.00013698,2]
[405313652,1770979841474,-500.0,0.00013698,2]
[405313653,1770979841484,-500.0,0.00013698,2]
[405313654,1770979841494,-500.0,0.00013698,2]
[405313655,1770979841503,-500.0,0.00013698,2]
[405313656,1770979841513,-500.0,0.00013698,2]
[405313657,1770979841523,-500.0,0.00013698,2]
[405313658,1770979841532,-500.0,0.00013698,2]
[405313659,1770979841542,-500.0,0.00013698,2]
[405313660,1770979841552,-500.0,0.00013698,2]
[405313661,1770979841561,-500.0,0.00013698,2]
[405313662,1770979841571,-500.0,0.00013698,2]
[405313663,1770979841580,-500.0,0.00013698,2]
[405313664,1770979841589,-500.0,0.00013698,2]
[405313665,1770979841598,-500.0,0.00013698,2]
[405313666,1770979841607,-500.0,0.00013698,2]
[405313667,1770979841617,-500.0,0.00013698,2]
[405313668,1770979841627,-500.0,0.00013698,2]
[405313669,1770979841637,-500.0,0.00013698,2]
[405313670,1770979841646,-500.0,0.00013698,2]
[405313671,1770979841656,-500.0,0.00013698,2]
[405313672,1770979841666,-500.0,0.00013698,2]
[405313673,1770979841675,-556.37486272,0.00013698,2]
[405313674,1770979841684,-500.0,0.00013698,2]
[405313675,1770979841694,-500.0,0.00013698,2]
[405313676,1770979841703,-500.0,0.00013698,2]
[405313677,1770979841713,-500.0,0.00013698,2]
[405313678,1770979841723,-500.0,0.00013698,2]
[405313679,1770979841732,-500.0,0.00013698,2]
[405313680,1770979841741,-500.0,0.00013698,2]
[405313681,1770979841751,-500.0,0.00013698,2]
[405313682,1770979841760,-306.95754888,0.00013698,2]
[405313683,1770979841769,-500.0,0.00013698,2]
[405313684,1770979841778,-500.0,0.00013698,2]
[405313685,1770979841787,-500.0,0.00013698,2]
[405313686,1770979841796,-500.0,0.00013698,2]
[405313687,1770979841806,-495.54112114,0.00013698,2]
[405313688,1770979841815,-500.0,0.00013698,2]
[405313689,1770979841824,-500.0,0.00013698,2]
[405313690,1770979841834,-500.0,0.00013698,2]
[405313691,1770979841843,-500.0,0.00013698,2]
[405313692,1770979841852,-500.0,0.00013698,2]
[405313693,1770979841862,-500.0,0.00013698,2]
[405313694,1770979841871,-500.0,0.00013698,2]
[405313695,1770979841880,-500.0,0.00013698,2]
[405313696,1770979841890,-500.0,0.00013698,2]
[405313697,1770979841899,-500.0,0.00013698,2]
[405313698,1770979841908,-500.0,0.00013698,2]
[405313699,1770979841917,-500.0,0.00013698,2]
[405313700,1770979841927,-500.0,0.00013698,2]
[405313701,1770979841936,-323.32012897,0.00013698,2]
[405313702,1770979841945,-4646.45,0.00013699,2]
[405313703,1770979841954,-575.56698105,0.00013753,2]
[405313704,1770979841963,-160.0,0.00013774,2]
[405313705,1770979841972,-1852.42,0.00013996,2]
[405313706,1770979841983,-876.63664137,0.00014221,2]
[405313707,1770979841992,-4646.45,0.00014384,2]
[405313708,1770979842001,-7278.2845678,0.00014406,2]
[405313709,1770979842020,-921.0713457,0.00014466,2]
[405313710,1770979842030,-500.0,0.0001463,2]
[405313711,1770979842040,-250.0,0.00015,2]
[405313712,1770979842049,-4646.45,0.00015068,2]
[405313713,1770979842059,-200.0,0.00015266,2]
[405313714,1770979842068,-1000.0,0.00015458,7]
[405313715,1770979842078,-7278.2845678,0.00015537,2]
[405313716,1770979842090,-921.0713457,0.00015578,2]
[405313717,1770979842099,-5187.36,0.00015636,2]
[405313718,1770979842108,-4646.45,0.00015753,2]
[405313719,1770979842117,-175.91,0.00015945,2]
[405313720,1770979842127,-7894.27,0.00016116,2]
[405313721,1770979842136,-183.82571045,0.00016172,2]
[405313722,1770979842146,-500.0,0.00016172,2]
[405313723,1770979842155,-282.63121113,0.00016173,2]
[405313724,1770979842165,-500.2976467,0.00016173,2]
[405313725,1770979842175,-500.0,0.00016173,2]
[405313726,1770979842184,-596.02960806,0.00016173,2]
[405313727,1770979842194,-500.0,0.00016199,2]
[405313728,1770979842203,-4646.45,0.00016438,2]
[405313729,1770979842212,-7278.2845678,0.00016669,2]
[405313730,1770979842222,-921.0713457,0.00016689,2]
[405313731,1770979842231,-1000.0,0.00016721,2]
[405313732,1770979842241,-300.0,0.00017,2]
[405313733,1770979842250,-541.22894783,0.00017,4]
[405313734,1770979842259,-294.611595,0.00017048,7]
[405313735,1770979842269,-1500.0,0.00017268,2]
[405313736,1770979842278,-500.0,0.00017288,2]
[405313737,1770979842287,-166.66,0.00017537,2]
[405313738,1770979842297,-4315.24371304,0.000177,2]
[405313739,1770979842306,-481.89542729,0.00017743,2]
[405313740,1770979842316,-921.0713457,0.000178,2]
[405313741,1770979842325,-368.73036864,0.00017808,2]
[405313742,1770979842334,-2008.47777759,0.00017816,2]
[405313743,1770979842343,-500.0,0.00017899,2]
[405313744,1770979842352,-465.10509654,0.00017899,2]
[405313745,1770979842362,-1500000.0,0.000179,2]
[405313746,1770979842374,-1742.5868,0.000179,2]
[405313747,1770979842385,-32832.125,0.000179,2]
[405313748,1770979842394,-259.7041,0.000179,2]
[405313749,1770979842404,-1000.0,0.000179,2]
[405313750,1770979842413,-504491.1098,0.00017996,2]
[405313751,1770979842423,-19224.8324837,0.00017997,2]
[405313752,1770979842432,-500.0,0.00017999,2]
[405313753,1770979842441,-500.0,0.00017999,2]
[405313754,1770979842450,-500.0,0.00017999,2]
[405313755,1770979842459,-500.0,0.00017999,2]
[405313756,1770979842468,-500.0,0.00017999,2]
[405313757,1770979842478,-500.0,0.00017999,2]
[405313758,1770979842487,-559.38615752,0.00017999,2]
[405313759,1770979842497,-2664708.79419336,0.00018,2]
[405313800,1770979845820,-1123.4677016,0.000178,2]
[405313850,1770981032027,-602.52223764,0.000116,2]
[405313851,1770981032037,-200.0,0.000116,4]
[405313852,1770981032048,-195.0,0.000116,2]
[405313853,1770981032059,-250.0,0.00011625,2]
[405313854,1770981032069,-195.0,0.00011628,2]
[405313855,1770981032080,-195.0,0.00011628,2]
[405313856,1770981032089,-210.14915421,0.00011628,2]
[405313857,1770981032099,-300.0,0.0001165,2]
[405313858,1770981032110,-250.0,0.00011666,2]
[405313859,1770981032120,-300.0,0.0001168,2]
[405313860,1770981032130,-300.0,0.0001168,2]
[405313862,1770981032140,-300.0,0.0001168,2]
[405313863,1770981032150,-671.27948659,0.00011698,2]
[405313864,1770981032162,-528.72051341,0.00011698,2]
[405313865,1770981032172,-300.0,0.00011699,2]